[Event "Vienna Chess Open 2019"]
[Site "Vienna"]
[Date "2019.08.24"]
[Round "9.5"]
[White "Muckle, Julius"]
[Black "Lakuntza Plazaola, Asier"]
[Result "1-0"]
[ECO "D45"]
[WhiteElo "2368"]
[BlackElo "2149"]
[Annotator "ChessBase"]
[PlyCount "67"]
[EventDate "2019.08.17"]
[EventType "swiss"]
[EventCountry "AUT"]
[SourceTitle "playchess.com"]
[Source "ChessBase"]
[SourceQuality "1"]
[TimeControl "40/5400+30:1800+30"]

1. d4 {[%emt 0:00:00]} d5 {[%emt 0:00:00]} 2. c4 {[%emt 0:00:00]} c6 {[%emt 0:00:00]} 3. Nc3 {[%emt 0:00:00]} Nf6 {[%emt 0:00:06]} 4. Nf3 {[%emt 0:00:00]} e6 {[%emt 0:00:26]} 5. e3 {[%emt 0:00:00]} Nbd7 {[%emt 0:00:16]} 6. Qc2 {[%emt 0:00:00]} Bd6 {[%emt 0:00:20]} 7. b3 {[%emt 0:00:03]} O-O {[%emt 0:00:14]} 8. Bb2 {[%emt 0:00:03]} b6 {[%emt 0:00:52]} 9. Bd3 {[%emt 0:00:11]} Bb7 {[%emt 0:00:37]} 10. O-O {[%emt 0:00:04]} Qe7 {[%emt 0:03:11]} 11. e4 {[%emt 0:01:18]} dxe4 {[%emt 0:00:32]} 12. Nxe4 {[%emt 0:00:02]} Nxe4 {[%emt 0:00:21]} 13. Bxe4 {[%emt 0:00:01]} f5 {[%emt 0:11:51]} 14. Bd3 {[%emt 0:00:05]} c5 {[%emt 0:00:05]} 15. d5 {[%emt 0:10:56]} Rae8 {[%emt 0:18:08]} 16. Rae1 {[%emt 0:34:38]} Qf7 {[%emt 0:00:14]} 17. Ng5 {[%emt 0:06:36]} Qh5 {[%emt 0:01:46]} 18. f4 {[%emt 0:00:08]} Bxf4 {[%emt 0:10:04]} 19. Rxf4 {[%emt 0:05:05]} Qxg5 {[%emt 0:00:08]} 20. Rf3 {[%emt 0:00:40]} Nf6 {[%emt 0:01:51]} 21. Rg3 {[%emt 0:06:11]} Qh4 {[%emt 0:04:18]} 22. Rf1 {[%emt 0:06:37]} Ng4 {[%emt 0:11:46]} 23. Rh3 {[%emt 0:00:07]} Qg5 {[%emt 0:00:07]} 24. Bc1 {[%emt 0:09:26]} Qf6 {[%emt 0:00:39]} 25. dxe6 {[%emt 0:04:57]} Qd4+ {[%emt 0:07:28]} 26. Kh1 {[%emt 0:00:11]} Rxe6 {[%emt 0:13:52]} 27. Bxf5 {[%emt 0:04:48]} Nf2+ {[%emt 0:09:10]} 28. Qxf2 {[%emt 0:00:08]} Qxf2 {[%emt 0:00:05]} 29. Bxh7+ {[%emt 0:01:07]} Kf7 {[%emt 0:00:46]} 30. Rxf2+ {[%emt 0:00:05]} Ke7 {[%emt 0:00:09]} 31. Be3 {[%emt 0:02:22]} g6 {[%emt 0:03:45]} 32. Bxg6 {[%emt 0:03:43]} Rxf2 {[%emt 0:01:55]} 33. Bxf2 {[%emt 0:00:42]} Kf6 {[%emt 0:00:52]} 34. Bd3 {[%emt 0:00:24]} 1-0

[Event "Vienna Chess Open 2019"]
[Site "Vienna"]
[Date "2019.08.24"]
[Round "9.6"]
[White "Froewis, Georg"]
[Black "Kowalski, Igor"]
[Result "1/2-1/2"]
[ECO "A05"]
[WhiteElo "2429"]
[BlackElo "2344"]
[Annotator "ChessBase"]
[PlyCount "101"]
[EventDate "2019.08.17"]
[EventType "swiss"]
[EventCountry "AUT"]
[SourceTitle "playchess.com"]
[Source "ChessBase"]
[SourceQuality "1"]
[TimeControl "40/5400+30:1800+30"]

1. Nf3 {[%emt 0:00:00]} Nf6 {[%emt 0:00:00]} 2. c4 {[%emt 0:00:00]} e6 {[%emt 0:00:00]} 3. b3 {[%emt 0:00:00]} d5 {[%emt 0:00:01]} 4. Bb2 {[%emt 0:00:00]} Be7 {[%emt 0:00:05]} 5. g3 {[%emt 0:00:00]} c5 {[%emt 0:00:26]} 6. cxd5 {[%emt 0:00:03]} exd5 {[%emt 0:00:05]} 7. Bg2 {[%emt 0:00:07]} Nc6 {[%emt 0:00:08]} 8. O-O {[%emt 0:00:06]} O-O {[%emt 0:00:06]} 9. d4 {[%emt 0:00:02]} Bf5 {[%emt 0:01:30]} 10. dxc5 {[%emt 0:07:06]} Bxc5 {[%emt 0:00:00]} 11. Nc3 {[%emt 0:00:09]} Rc8 {[%emt 0:03:08]} 12. Rc1 {[%emt 0:04:57]} Be7 {[%emt 0:02:27]} 13. Nd4 {[%emt 0:02:17]} Bg6 {[%emt 0:04:00]} 14. Bh3 {[%emt 0:02:34]} Ra8 {[%emt 0:05:07]} 15. Nf5 {[%emt 0:02:26]} Bxf5 {[%emt 0:01:11]} 16. Bxf5 {[%emt 0:00:02]} Qa5 {[%emt 0:00:07]} 17. Bb1 {[%emt 0:02:13]} Rfd8 {[%emt 0:06:46]} 18. Qd3 {[%emt 0:01:07]} Ba3 {[%emt 0:09:52]} 19. Bxa3 {[%emt 0:07:58]} Qxa3 {[%emt 0:00:17]} 20. Rfd1 {[%emt 0:00:16]} Rac8 {[%emt 0:08:22]} 21. Qd2 {[%emt 0:07:59]} g6 {[%emt 0:06:12]} 22. Nb5 {[%emt 0:11:55]} Qe7 {[%emt 0:00:42]} 23. Nd4 {[%emt 0:02:33]} Kg7 {[%emt 0:07:52]} 24. Nxc6 {[%emt 0:07:44]} Rxc6 {[%emt 0:02:59]} 25. e3 {[%emt 0:02:40]} Rdc8 {[%emt 0:01:01]} 26. Rxc6 {[%emt 0:00:21]} bxc6 {[%emt 0:00:54]} 27. b4 {[%emt 0:02:25]} Rb8 {[%emt 0:02:26]} 28. a3 {[%emt 0:00:37]} a5 {[%emt 0:00:19]} 29. Qc3 {[%emt 0:01:11]} axb4 {[%emt 0:00:27]} 30. axb4 {[%emt 0:00:02]} Rb6 {[%emt 0:00:27]} 31. Rd4 {[%emt 0:01:02]} c5 {[%emt 0:12:56]} 32. Rxd5 {[%emt 0:00:02]} cxb4 {[%emt 0:00:05]} 33. Qb2 {[%emt 0:00:05]} b3 {[%emt 0:00:21]} 34. Bd3 {[%emt 0:02:26]} Qa7 {[%emt 0:01:52]} 35. Bc4 {[%emt 0:00:51]} Qa2 {[%emt 0:00:25]} 36. Rd2 {[%emt 0:02:37]} Qa4 {[%emt 0:00:55]} 37. Rd4 {[%emt 0:03:54]} Qc6 {[%emt 0:07:23]} 38. g4 {[%emt 0:14:48]} h6 {[%emt 0:04:51]} 39. h4 {[%emt 0:00:27]} Rb4 {[%emt 0:01:39]} 40. Bxb3 {[%emt 0:01:12]} Qb6 {[%emt 0:01:16]} 41. g5 {[%emt 0:43:06]} Rxb3 {[%emt 0:32:57]} 42. gxf6+ {[%emt 0:00:06]} Kh7 {[%emt 0:00:03]} 43. Qc2 {[%emt 0:00:20]} Rb2 {[%emt 0:01:23]} 44. Rd6 {[%emt 0:00:00]} Rb1+ {[%emt 0:00:00]} 45. Kg2 {[%emt 0:00:00]} Qxd6 {[%emt 0:00:00]} 46. Qxb1 {[%emt 0:00:00]} Qxf6 {[%emt 0:00:00]} 47. Qe4 {[%emt 0:00:00]} h5 {[%emt 0:00:00]} 48. Kg3 {[%emt 0:00:00]} Qa1 {[%emt 0:00:00]} 49. Kh2 {[%emt 0:00:00]} Qb2 {[%emt 0:00:00]} 50. Qf4 {[%emt 0:00:00]} Kg8 {[%emt 0:00:00]} 51. Kg2 {[%emt 0:00:00]} 1/2-1/2

[Event "Vienna Chess Open 2019"]
[Site "Vienna"]
[Date "2019.08.24"]
[Round "9.6"]
[White "Seresin, Francesco"]
[Black "Helmer, Christoph"]
[Result "1/2-1/2"]
[ECO "E47"]
[WhiteElo "2362"]
[BlackElo "2146"]
[Annotator "ChessBase"]
[PlyCount "51"]
[EventDate "2019.08.17"]
[EventType "swiss"]
[EventCountry "AUT"]
[SourceTitle "playchess.com"]
[Source "ChessBase"]
[SourceQuality "1"]
[TimeControl "40/5400+30:1800+30"]

1. d4 {[%emt 0:02:08]} Nf6 {[%emt 0:00:00]} 2. c4 {[%emt 0:00:29]} e6 {[%emt 0:00:00]} 3. Nc3 {[%emt 0:00:08]} Bb4 {[%emt 0:00:00]} 4. e3 {[%emt 0:00:57]} O-O {[%emt 0:00:00]} 5. Bd3 {[%emt 0:00:08]} c5 {[%emt 0:00:04]} 6. Nf3 {[%emt 0:01:45]} Bxc3+ {[%emt 0:03:01]} 7. bxc3 {[%emt 0:00:15]} Nc6 {[%emt 0:01:50]} 8. O-O {[%emt 0:01:17]} d6 {[%emt 0:00:12]} 9. e4 {[%emt 0:02:02]} e5 {[%emt 0:00:13]} 10. d5 {[%emt 0:01:01]} Ne7 {[%emt 0:01:07]} 11. Nh4 {[%emt 0:04:53]} h6 {[%emt 0:23:52]} 12. f4 {[%emt 0:15:23]} Ng6 {[%emt 0:05:58]} 13. Nxg6 {[%emt 0:02:37]} fxg6 {[%emt 0:00:07]} 14. fxe5 {[%emt 0:07:19]} dxe5 {[%emt 0:00:07]} 15. a4 {[%emt 0:01:42]} Qd6 {[%emt 0:07:16]} 16. a5 {[%emt 0:04:31]} Bd7 {[%emt 0:03:13]} 17. Bd2 {[%emt 0:07:25]} g5 {[%emt 0:03:17]} 18. Qe2 {[%emt 0:04:08]} Bg4 {[%emt 0:13:41]} 19. Qe3 {[%emt 0:00:38]} Bh5 {[%emt 0:00:28]} 20. h3 {[%emt 0:08:25]} Bg6 {[%emt 0:00:50]} 21. g3 {[%emt 0:01:15]} Rf7 {[%emt 0:03:05]} 22. Rab1 {[%emt 0:06:09]} b6 {[%emt 0:02:08]} 23. Ra1 {[%emt 0:03:29]} Raf8 {[%emt 0:00:10]} 24. axb6 {[%emt 0:00:52]} axb6 {[%emt 0:00:07]} 25. Kg2 {[%emt 0:04:03]} g4 {[%emt 0:03:29]} 26. h4 {[%emt 0:04:42]} 1/2-1/2

[Event "Vienna Chess Open 2019"]
[Site "Vienna"]
[Date "2019.08.24"]
[Round "9.7"]
[White "Hecht, Carsten"]
[Black "Mons, Leon"]
[Result "0-1"]
[ECO "B06"]
[WhiteElo "2300"]
[BlackElo "2559"]
[Annotator "ChessBase"]
[PlyCount "94"]
[EventDate "2019.08.17"]
[EventType "swiss"]
[EventCountry "AUT"]
[SourceTitle "playchess.com"]
[Source "ChessBase"]
[SourceQuality "1"]
[TimeControl "40/5400+30:1800+30"]

1. e4 {[%emt 0:00:00]} g6 {[%emt 0:00:00]} 2. d4 {[%emt 0:00:00]} Bg7 {[%emt 0:00:00]} 3. Nc3 {[%emt 0:00:00]} a6 {[%emt 0:00:25]} 4. Be3 {[%emt 0:01:07]} d6 {[%emt 0:01:18]} 5. Qd2 {[%emt 0:00:42]} b5 {[%emt 0:00:49]} 6. h4 {[%emt 0:01:14]} h5 {[%emt 0:02:33]} 7. f3 {[%emt 0:00:49]} c6 {[%emt 0:03:47]} 8. Nh3 {[%emt 0:10:48]} Bxh3 {[%emt 0:00:17]} 9. Rxh3 {[%emt 0:00:07]} Nd7 {[%emt 0:06:51]} 10. O-O-O {[%emt 0:02:40]} Ngf6 {[%emt 0:06:28]} 11. Kb1 {[%emt 0:17:12]} Qc7 {[%emt 0:06:36]} 12. Ne2 {[%emt 0:08:50]} Nb6 {[%emt 0:04:04]} 13. Ng3 {[%emt 0:06:53]} c5 {[%emt 0:09:16]} 14. c3 {[%emt 0:04:08]} e5 {[%emt 0:10:16]} 15. Be2 {[%emt 0:08:28]} Rc8 {[%emt 0:03:36]} 16. Rhh1 {[%emt 0:13:00]} exd4 {[%emt 0:15:27]} 17. cxd4 {[%emt 0:00:07]} O-O {[%emt 0:01:48]} 18. Bh6 {[%emt 0:06:03]} Bh8 {[%emt 0:07:40]} 19. Bxf8 {[%emt 0:00:28]} Rxf8 {[%emt 0:00:25]} 20. dxc5 {[%emt 0:03:33]} dxc5 {[%emt 0:00:06]} 21. Qd6 {[%emt 0:00:06]} Qb7 {[%emt 0:02:29]} 22. Qxc5 {[%emt 0:01:30]} Na4 {[%emt 0:02:21]} 23. Qd4 {[%emt 0:03:28]} Nxb2 {[%emt 0:01:02]} 24. Qxb2 {[%emt 0:04:57]} Nxe4 {[%emt 0:00:15]} 25. Qxh8+ {[%emt 0:00:46]} Kxh8 {[%emt 0:00:04]} 26. Nxe4 {[%emt 0:00:08]} Qe7 {[%emt 0:01:15]} 27. Rd2 {[%emt 0:02:37]} Rd8 {[%emt 0:01:59]} 28. Rxd8+ {[%emt 0:02:12]} Qxd8 {[%emt 0:00:02]} 29. g3 {[%emt 0:01:06]} Qe7 {[%emt 0:01:21]} 30. Bd3 {[%emt 0:01:11]} Qb4+ {[%emt 0:00:29]} 31. Kc2 {[%emt 0:00:15]} Qa3 {[%emt 0:00:56]} 32. Ra1 {[%emt 0:00:32]} b4 {[%emt 0:01:23]} 33. Rb1 {[%emt 0:00:56]} f5 {[%emt 0:00:36]} 34. Nf2 {[%emt 0:00:30]} b3+ {[%emt 0:00:32]} 35. Rxb3 {[%emt 0:00:21]} Qc5+ {[%emt 0:00:03]} 36. Kb1 {[%emt 0:00:31]} Qxf2 {[%emt 0:00:07]} 37. Bxa6 {[%emt 0:00:26]} Qxg3 {[%emt 0:00:38]} 38. a4 {[%emt 0:00:23]} Qxh4 {[%emt 0:00:12]} 39. Bb5 {[%emt 0:00:09]} Qe1+ {[%emt 0:00:17]} 40. Ka2 {[%emt 0:00:07]} h4 {[%emt 0:00:20]} 41. f4 {[%emt 0:30:29]} Kg7 {[%emt 0:31:46]} 42. Ra3 {[%emt 0:01:28]} Qd2+ {[%emt 0:00:14]} 43. Kb3 {[%emt 0:00:05]} h3 {[%emt 0:00:43]} 44. a5 {[%emt 0:00:29]} h2 {[%emt 0:00:27]} 45. Bc6 {[%emt 0:00:13]} Qd6 {[%emt 0:01:22]} 46. Bg2 {[%emt 0:00:57]} Qd3+ {[%emt 0:00:17]} 47. Ka4 {[%emt 0:00:16]} Qc4# 0-1

[Event "Vienna Chess Open 2019"]
[Site "Vienna"]
[Date "2019.08.24"]
[Round "9.8"]
[White "Diermair, Andreas"]
[Black "Akesson, Ralf"]
[Result "1-0"]
[ECO "E25"]
[WhiteElo "2473"]
[BlackElo "2348"]
[Annotator "ChessBase"]
[PlyCount "75"]
[EventDate "2019.08.17"]
[EventType "swiss"]
[EventCountry "AUT"]
[SourceTitle "playchess.com"]
[Source "ChessBase"]
[SourceQuality "1"]
[TimeControl "40/5400+30:1800+30"]

1. d4 {[%emt 0:03:03]} e6 {[%emt 0:02:34]} 2. c4 {[%emt 0:00:41]} Nf6 {[%emt 0:00:44]} 3. Nc3 {[%emt 0:00:10]} Bb4 {[%emt 0:00:15]} 4. f3 {[%emt 0:00:10]} d5 {[%emt 0:01:37]} 5. a3 {[%emt 0:01:05]} Bxc3+ {[%emt 0:00:58]} 6. bxc3 {[%emt 0:00:02]} c5 {[%emt 0:02:45]} 7. cxd5 {[%emt 0:00:09]} Nxd5 {[%emt 0:00:56]} 8. dxc5 {[%emt 0:00:13]} Qa5 {[%emt 0:02:58]} 9. e4 {[%emt 0:00:10]} Nf6 {[%emt 0:00:17]} 10. Be3 {[%emt 0:00:57]} O-O {[%emt 0:01:10]} 11. Qb3 {[%emt 0:01:49]} Nfd7 {[%emt 0:03:01]} 12. a4 {[%emt 0:09:33]} Na6 {[%emt 0:16:53]} 13. Bxa6 {[%emt 0:09:16]} bxa6 {[%emt 0:03:53]} 14. Qb4 {[%emt 0:03:34]} Qc7 {[%emt 0:02:44]} 15. Nh3 {[%emt 0:19:01]} e5 {[%emt 0:11:18]} 16. O-O {[%emt 0:03:15]} a5 {[%emt 0:01:00]} 17. Qc4 {[%emt 0:06:01]} Nf6 {[%emt 0:06:18]} 18. Nf2 {[%emt 0:01:03]} Be6 {[%emt 0:00:13]} 19. Qa6 {[%emt 0:01:16]} Rfc8 {[%emt 0:06:40]} 20. Rfd1 {[%emt 0:04:04]} Nd7 {[%emt 0:03:11]} 21. Nd3 {[%emt 0:02:11]} Rab8 {[%emt 0:03:02]} 22. Rdb1 {[%emt 0:11:11]} h6 {[%emt 0:06:49]} 23. h3 {[%emt 0:03:25]} Rb3 {[%emt 0:03:58]} 24. Rxb3 {[%emt 0:06:23]} Bxb3 {[%emt 0:00:04]} 25. Rb1 {[%emt 0:01:36]} Bxa4 {[%emt 0:05:10]} 26. Rb7 {[%emt 0:00:53]} Qc6 {[%emt 0:00:11]} 27. Qxa7 {[%emt 0:01:35]} Kf8 {[%emt 0:05:52]} 28. Bf2 {[%emt 0:01:59]} f6 {[%emt 0:00:38]} 29. Kh2 {[%emt 0:00:45]} Ke8 {[%emt 0:00:32]} 30. Nb2 {[%emt 0:01:23]} Bb5 {[%emt 0:00:30]} 31. c4 {[%emt 0:02:09]} Ba4 {[%emt 0:01:54]} 32. Be1 {[%emt 0:02:57]} Bc2 {[%emt 0:00:59]} 33. Bxa5 {[%emt 0:00:26]} f5 {[%emt 0:01:20]} 34. exf5 {[%emt 0:01:32]} e4 {[%emt 0:00:48]} 35. f4 {[%emt 0:01:15]} e3 {[%emt 0:00:28]} 36. Rb6 {[%emt 0:01:43]} Nxb6 {[%emt 0:01:29]} 37. cxb6 {[%emt 0:00:07]} Be4 {[%emt 0:04:42]} 38. Qxg7 {[%emt 0:00:22]} 1-0

[Event "Vienna Chess Open 2019"]
[Site "Vienna"]
[Date "2019.08.24"]
[Round "9.8"]
[White "Gilevych, Artem"]
[Black "Groetz, Harald"]
[Result "1-0"]
[ECO "A06"]
[WhiteElo "2424"]
[BlackElo "2322"]
[Annotator "ChessBase"]
[PlyCount "69"]
[EventDate "2019.08.17"]
[EventType "swiss"]
[EventCountry "AUT"]
[SourceTitle "playchess.com"]
[Source "ChessBase"]
[SourceQuality "1"]
[TimeControl "40/5400+30:1800+30"]

1. Nf3 {[%emt 0:00:00]} d5 {[%emt 0:00:00]} 2. c4 {[%emt 0:03:44]} c6 {[%emt 0:00:08]} 3. d4 {[%emt 0:05:44]} Nf6 {[%emt 0:00:16]} 4. Qb3 {[%emt 0:02:11]} dxc4 {[%emt 0:07:09]} 5. Qxc4 {[%emt 0:01:35]} g6 {[%emt 0:00:20]} 6. Nc3 {[%emt 0:00:10]} b5 {[%emt 0:13:00]} 7. Qd3 {[%emt 0:06:11]} Bg7 {[%emt 0:07:43]} 8. e4 {[%emt 0:04:55]} b4 {[%emt 0:01:56]} 9. Na4 {[%emt 0:00:07]} Ba6 {[%emt 0:00:28]} 10. Qc2 {[%emt 0:00:25]} Bxf1 {[%emt 0:00:43]} 11. Kxf1 {[%emt 0:00:05]} O-O {[%emt 0:04:25]} 12. Bd2 {[%emt 0:02:01]} Qa5 {[%emt 0:05:16]} 13. Re1 {[%emt 0:06:18]} Qb5+ {[%emt 0:01:21]} 14. Kg1 {[%emt 0:00:13]} e6 {[%emt 0:00:12]} 15. e5 {[%emt 0:01:03]} Nd5 {[%emt 0:06:53]} 16. h4 {[%emt 0:02:03]} h5 {[%emt 0:03:52]} 17. Nc5 {[%emt 0:06:51]} Ne7 {[%emt 0:04:58]} 18. Qe4 {[%emt 0:12:34]} Na6 {[%emt 0:07:55]} 19. Nxa6 {[%emt 0:01:30]} Qxa6 {[%emt 0:00:02]} 20. Bxb4 {[%emt 0:00:07]} Rfe8 {[%emt 0:00:16]} 21. Ba3 {[%emt 0:05:43]} Nd5 {[%emt 0:08:27]} 22. Rh3 {[%emt 0:01:15]} Bf8 {[%emt 0:07:47]} 23. Ng5 {[%emt 0:01:16]} Bxa3 {[%emt 0:03:22]} 24. Rxa3 {[%emt 0:00:33]} Qc4 {[%emt 0:04:48]} 25. Rf3 {[%emt 0:03:31]} Re7 {[%emt 0:00:02]} 26. b3 {[%emt 0:00:41]} Qb4 {[%emt 0:01:37]} 27. Rc1 {[%emt 0:00:09]} Qb7 {[%emt 0:05:35]} 28. g4 {[%emt 0:04:30]} hxg4 {[%emt 0:00:21]} 29. Qxg4 {[%emt 0:00:06]} Kg7 {[%emt 0:01:43]} 30. h5 {[%emt 0:00:22]} Qd7 {[%emt 0:00:59]} 31. Kg2 {[%emt 0:03:37]} Rg8 {[%emt 0:01:55]} 32. hxg6 {[%emt 0:00:34]} fxg6 {[%emt 0:00:15]} 33. Rh1 {[%emt 0:00:10]} Rh8 {[%emt 0:00:37]} 34. Rxh8 {[%emt 0:00:33]} Kxh8 {[%emt 0:00:02]} 35. Qh4+ {[%emt 0:00:23]} 1-0

[Event "Vienna Chess Open 2019"]
[Site "Vienna"]
[Date "2019.08.24"]
[Round "9.10"]
[White "Gavrilescu, David"]
[Black "Randazzo, Adrian"]
[Result "1-0"]
[ECO "C07"]
[WhiteElo "2464"]
[BlackElo "2254"]
[Annotator "ChessBase"]
[PlyCount "111"]
[EventDate "2019.08.17"]
[EventType "swiss"]
[EventCountry "AUT"]
[SourceTitle "playchess.com"]
[Source "ChessBase"]
[SourceQuality "1"]
[TimeControl "40/5400+30:1800+30"]

1. e4 {[%emt 0:00:00]} e6 {[%emt 0:00:00]} 2. d4 {[%emt 0:00:10]} d5 {[%emt 0:00:00]} 3. Nd2 {[%emt 0:00:35]} c5 {[%emt 0:00:00]} 4. exd5 {[%emt 0:01:20]} Qxd5 {[%emt 0:00:18]} 5. dxc5 {[%emt 0:00:09]} Nf6 {[%emt 0:00:14]} 6. Ngf3 {[%emt 0:00:56]} Qxc5 {[%emt 0:00:18]} 7. Bd3 {[%emt 0:00:04]} Be7 {[%emt 0:00:32]} 8. O-O {[%emt 0:00:16]} O-O {[%emt 0:00:07]} 9. Qe2 {[%emt 0:05:08]} Nbd7 {[%emt 0:01:05]} 10. a4 {[%emt 0:01:54]} Qc7 {[%emt 0:00:18]} 11. Ne4 {[%emt 0:00:44]} b6 {[%emt 0:03:46]} 12. a5 {[%emt 0:02:55]} Bb7 {[%emt 0:01:23]} 13. Nxf6+ {[%emt 0:02:25]} Bxf6 {[%emt 0:01:26]} 14. Ng5 {[%emt 0:08:11]} g6 {[%emt 0:14:42]} 15. Qg4 {[%emt 0:09:25]} Bg7 {[%emt 0:03:09]} 16. Qh4 {[%emt 0:05:34]} Nf6 {[%emt 0:02:28]} 17. Ra4 {[%emt 0:04:38]} Rfe8 {[%emt 0:14:12]} 18. Bd2 {[%emt 0:14:14]} h6 {[%emt 0:03:56]} 19. Nh3 {[%emt 0:03:41]} Qc6 {[%emt 0:01:30]} 20. f3 {[%emt 0:00:37]} b5 {[%emt 0:00:26]} 21. Raa1 {[%emt 0:12:06]} g5 {[%emt 0:08:17]} 22. Qe1 {[%emt 0:02:48]} Nd5 {[%emt 0:04:49]} 23. Kh1 {[%emt 0:02:58]} f5 {[%emt 0:01:41]} 24. c3 {[%emt 0:02:15]} Rad8 {[%emt 0:01:05]} 25. Qe2 {[%emt 0:02:47]} a6 {[%emt 0:01:29]} 26. Rad1 {[%emt 0:01:08]} Qc7 {[%emt 0:03:11]} 27. c4 {[%emt 0:00:46]} bxc4 {[%emt 0:00:06]} 28. Bxc4 {[%emt 0:00:00]} Bxb2 {[%emt 0:06:39]} 29. Bxg5 {[%emt 0:04:14]} hxg5 {[%emt 0:02:24]} 30. Qxb2 {[%emt 0:00:12]} Qxc4 {[%emt 0:05:23]} 31. Qxb7 {[%emt 0:00:02]} Re7 {[%emt 0:01:53]} 32. Qb2 {[%emt 0:01:00]} Rg7 {[%emt 0:00:44]} 33. Rfe1 {[%emt 0:04:48]} Re8 {[%emt 0:03:13]} 34. Rd4 {[%emt 0:01:29]} Qc5 {[%emt 0:02:16]} 35. Qd2 {[%emt 0:00:21]} Kf8 {[%emt 0:06:03]} 36. Rd3 {[%emt 0:04:40]} Qb5 {[%emt 0:03:43]} 37. Rd4 {[%emt 0:02:17]} Qc5 {[%emt 0:00:24]} 38. Rc1 {[%emt 0:00:38]} Qe7 {[%emt 0:00:41]} 39. Qe2 {[%emt 0:00:58]} Qa3 {[%emt 0:00:35]} 40. Qd2 {[%emt 0:00:47]} Qe7 {[%emt 0:02:20]} 41. Rdc4 {[%emt 0:05:42]} Rd8 {[%emt 0:06:05]} 42. Rc6 {[%emt 0:04:15]} Nb4 {[%emt 0:10:04]} 43. Rc8 {[%emt 0:01:02]} Rxc8 {[%emt 0:00:09]} 44. Rxc8+ {[%emt 0:00:02]} Kf7 {[%emt 0:00:06]} 45. f4 {[%emt 0:05:21]} gxf4 {[%emt 0:02:25]} 46. Nxf4 {[%emt 0:01:25]} Rg8 {[%emt 0:04:25]} 47. Rc4 {[%emt 0:07:11]} Rd8 {[%emt 0:02:41]} 48. Qe2 {[%emt 0:00:10]} Qd6 {[%emt 0:02:44]} 49. Qh5+ {[%emt 0:01:40]} Kf8 {[%emt 0:01:31]} 50. Qh6+ {[%emt 0:01:54]} Kf7 {[%emt 0:00:40]} 51. Qh7+ {[%emt 0:00:43]} Ke8 {[%emt 0:03:53]} 52. Qg8+ {[%emt 0:01:41]} Ke7 {[%emt 0:00:34]} 53. Qg7+ {[%emt 0:00:58]} Ke8 {[%emt 0:00:02]} 54. h4 {[%emt 0:02:33]} Nd5 {[%emt 0:02:37]} 55. Ng6 {[%emt 0:00:12]} Ne7 {[%emt 0:01:30]} 56. Qh8+ {[%emt 0:00:17]} 1-0

[Event "Vienna Chess Open 2019"]
[Site "Vienna"]
[Date "2019.08.24"]
[Round "9.11"]
[White "Janzelj, Tim"]
[Black "Swicarz, Maciej"]
[Result "1-0"]
[ECO "C10"]
[WhiteElo "2435"]
[BlackElo "2341"]
[Annotator "ChessBase"]
[PlyCount "147"]
[EventDate "2019.08.17"]
[EventType "swiss"]
[EventCountry "AUT"]
[SourceTitle "playchess.com"]
[Source "ChessBase"]
[SourceQuality "1"]
[TimeControl "40/5400+30:1800+30"]

1. d4 {[%emt 0:00:00]} e6 {[%emt 0:00:08]} 2. e4 {[%emt 0:02:18]} d5 {[%emt 0:00:02]} 3. Nd2 {[%emt 0:00:08]} dxe4 {[%emt 0:00:59]} 4. Nxe4 {[%emt 0:00:11]} Bd7 {[%emt 0:02:00]} 5. Nf3 {[%emt 0:05:18]} Bc6 {[%emt 0:00:04]} 6. Ng3 {[%emt 0:05:50]} Bxf3 {[%emt 0:01:03]} 7. Qxf3 {[%emt 0:00:13]} c6 {[%emt 0:00:07]} 8. c3 {[%emt 0:00:28]} Nf6 {[%emt 0:00:35]} 9. Bc4 {[%emt 0:04:21]} Bd6 {[%emt 0:03:16]} 10. O-O {[%emt 0:02:51]} Nbd7 {[%emt 0:00:44]} 11. a4 {[%emt 0:08:59]} Qc7 {[%emt 0:01:20]} 12. a5 {[%emt 0:00:56]} O-O {[%emt 0:03:25]} 13. a6 {[%emt 0:05:01]} b5 {[%emt 0:04:43]} 14. Bd3 {[%emt 0:00:25]} Rab8 {[%emt 0:01:33]} 15. Ne4 {[%emt 0:16:53]} Nxe4 {[%emt 0:08:31]} 16. Bxe4 {[%emt 0:03:38]} Rb6 {[%emt 0:03:55]} 17. g3 {[%emt 0:01:39]} Nf6 {[%emt 0:06:01]} 18. Bd3 {[%emt 0:00:54]} Qc8 {[%emt 0:16:06]} 19. b3 {[%emt 0:11:12]} Rxa6 {[%emt 0:01:33]} 20. Bg5 {[%emt 0:00:01]} Be7 {[%emt 0:03:47]} 21. c4 {[%emt 0:02:35]} b4 {[%emt 0:03:59]} 22. Rxa6 {[%emt 0:11:48]} Qxa6 {[%emt 0:00:05]} 23. Qf4 {[%emt 0:00:46]} Rd8 {[%emt 0:06:31]} 24. Re1 {[%emt 0:06:57]} Qb6 {[%emt 0:17:29]} 25. c5 {[%emt 0:03:52]} Qb8 {[%emt 0:00:01]} 26. Qxb8 {[%emt 0:01:17]} Rxb8 {[%emt 0:00:03]} 27. Ra1 {[%emt 0:00:06]} Rb7 {[%emt 0:01:22]} 28. Ra6 {[%emt 0:00:11]} Rc7 {[%emt 0:01:49]} 29. Bf4 {[%emt 0:00:33]} Rd7 {[%emt 0:04:37]} 30. Rxc6 {[%emt 0:00:42]} Rxd4 {[%emt 0:00:13]} 31. Bc4 {[%emt 0:00:45]} Ne8 {[%emt 0:05:36]} 32. Bb5 {[%emt 0:04:15]} Rd8 {[%emt 0:00:11]} 33. Be3 {[%emt 0:00:26]} Rb8 {[%emt 0:01:38]} 34. Bc4 {[%emt 0:00:31]} Ra8 {[%emt 0:02:54]} 35. Ba6 {[%emt 0:00:51]} Kf8 {[%emt 0:00:24]} 36. Bf4 {[%emt 0:00:23]} g5 {[%emt 0:00:30]} 37. Be5 {[%emt 0:00:39]} Rd8 {[%emt 0:00:20]} 38. Bb5 {[%emt 0:00:32]} f6 {[%emt 0:00:43]} 39. Bb2 {[%emt 0:00:23]} e5 {[%emt 0:00:18]} 40. Kg2 {[%emt 0:00:12]} Ng7 {[%emt 0:00:44]} 41. g4 {[%emt 0:04:06]} h5 {[%emt 0:08:00]} 42. h3 {[%emt 0:01:15]} hxg4 {[%emt 0:06:43]} 43. hxg4 {[%emt 0:00:02]} Rb8 {[%emt 0:00:23]} 44. Bc4 {[%emt 0:01:53]} Ne8 {[%emt 0:02:48]} 45. Kf3 {[%emt 0:07:01]} Rb7 {[%emt 0:02:44]} 46. Bc1 {[%emt 0:07:21]} Nc7 {[%emt 0:06:36]} 47. Be3 {[%emt 0:01:26]} Bd8 {[%emt 0:01:47]} 48. Rd6 {[%emt 0:01:13]} Rb8 {[%emt 0:01:47]} 49. Rd7 {[%emt 0:02:15]} Rc8 {[%emt 0:01:28]} 50. Rh7 {[%emt 0:03:27]} a5 {[%emt 0:02:30]} 51. c6 {[%emt 0:00:16]} Ne6 {[%emt 0:00:37]} 52. Bxe6 {[%emt 0:01:20]} Rxc6 {[%emt 0:00:01]} 53. Rf7+ {[%emt 0:03:26]} Ke8 {[%emt 0:00:06]} 54. Bd7+ {[%emt 0:00:06]} Kxf7 {[%emt 0:00:08]} 55. Bxc6 {[%emt 0:00:03]} Ke6 {[%emt 0:01:24]} 56. Ke4 {[%emt 0:00:01]} Kd6 {[%emt 0:00:12]} 57. Ba4 {[%emt 0:00:21]} Bc7 {[%emt 0:00:19]} 58. f3 {[%emt 0:00:28]} Bd8 {[%emt 0:00:35]} 59. Kf5 {[%emt 0:00:27]} Kd5 {[%emt 0:00:16]} 60. Be8 {[%emt 0:00:14]} Kd6 {[%emt 0:00:26]} 61. Ba7 {[%emt 0:00:51]} Ke7 {[%emt 0:00:43]} 62. Bb5 {[%emt 0:00:18]} Kd6 {[%emt 0:00:04]} 63. Bc4 {[%emt 0:00:08]} Kd7 {[%emt 0:01:33]} 64. Bc5 {[%emt 0:00:03]} Kc6 {[%emt 0:00:46]} 65. Bf8 {[%emt 0:00:09]} Kb6 {[%emt 0:00:15]} 66. Ke6 {[%emt 0:00:21]} Kc6 {[%emt 0:00:01]} 67. Bd6 {[%emt 0:00:42]} Bb6 {[%emt 0:00:56]} 68. Be7 {[%emt 0:00:15]} Be3 {[%emt 0:00:08]} 69. Bxf6 {[%emt 0:00:11]} Kc5 {[%emt 0:00:07]} 70. Bxe5 {[%emt 0:01:03]} a4 {[%emt 0:00:05]} 71. Bd6+ {[%emt 0:00:04]} Kd4 {[%emt 0:00:18]} 72. Bxb4 {[%emt 0:00:06]} Bd2 {[%emt 0:00:39]} 73. Bxd2 {[%emt 0:00:12]} a3 {[%emt 0:00:06]} 74. Bxg5 {[%emt 0:00:21]} 1-0